{"text_format":"3","workbook":"xlsx","n_sheets":4,"sheets":["Kilometre taşları","Yol haritası","Hakkında","Grafik verileri"],"not_rendered":{"charts":1,"defined_names":2},"read":"whole","date_system":"1900"}

{"sheet":"Kilometre taşları","index":0,"n_rows":27,"n_cols":5,"rows_kept":27}
["Bu çalışma sayfasına önemli kilometre taşlarını ve etkinlikleri girerek bir Yol Haritası oluşturun.\nBu çalışma sayfasının başlığı C1 hücresindedir. \nEkran okuyucular için yönergeler dahil olmak üzere bu çalışma sayfasını kullanmaya ilişkin bilgiler Hakkında çalışma sayfasındadır.\nDaha fazla yönerge için A sütununda aşağı ilerlemeye devam edin.",null,"Kilometre taşları"]
["Tablo başlıkları C2 ile E2 arasındaki hücrelerdedir. Belirli girdileri sıralamak veya bulmak için Sırala ve Filtre Uygula seçeneklerini kullanın.\nC3 hücresinden başlayan tabloda, tarihlerle birlikte Kilometre Taşlarını girin ve kilometre taşı grafiğinin oluşturulması için bir konum ayarlayın.\nB sütunu gizlenmiştir. Grafik, zaman çizelgesi kısımlarını görüntülemek üzere bir kaydırma çubuğu kullanılarak bu verilerden oluşturulur. B Sütunu, kaydırma çubuğu artırıldığında hangi Kilometre Taşlarının gösterileceğinin belirlenmesine yardımcı olur. \nUyarı: B sütunu içeriklerinin silinmesi veya değiştirilmesi, bu çalışma kitabındaki grafiklendirme bütünlüğünü bozabilir.","No.","Konum","Tarih","Kilometre Taşı"]
["C1 hücresine tarih ve kilometre taşı grafiğinin oluşturulması için Konum girin. Kilometre taşı grafiğinin zaman çizelgesinin üstünde oluşturulması için 1 ile 3 arasında bir pozitif sayı girin. Kilometre taşı grafiğinin zaman çizelgesinin üstünde oluşturulması için -1 ile -3 arasında bir negatif sayı girin.\nTablodaki D ve E sütunlarına Tarih ve Kilometre Taşı veya etkinliği girin.\nSağdaki tablodaki her bir yeni satır için bu düzeni tekrarlayın.\nÖrnek veriler 3 ile 26 arasındaki satırlarda sağlanmaktadır. Kendi yol haritanızı oluşturmak için örnek içeriği değiştirin veya silin.\nSonraki yönerge için A27 hücresine gidin.",{"$f":"ROW($A1)","v":1},1,{"$f":"TODAY()","v":"2018-06-29"},"Başlangıç"]
[null,{"$f":"ROW($A2)","v":2},-2,{"$f":"D3+10","v":"2018-07-09"},"Sorun Çözümleme\netkinlik 1"]
[null,3,1,{"$f":"D4+20","v":"2018-07-29"},"İş Örnek Durumu Geliştirme\netkinlik 1\netkinlik 2"]
[null,4,-1,{"$f":"D5+30","v":"2018-08-28"},"Sunuyu Gözden Geçirme"]
[null,5,{"v":-0.5,"d":"-1"},{"$f":"D6+40","v":"2018-10-07"},"Yürütme Başlangıcı\netkinlik 1\netkinlik 2"]
[null,6,2,{"$f":"D7+50","v":"2018-11-26"},"Yürütme Uyumu\netkinlik 1\netkinlik 2\netkinlik 3"]
[null,7,{"v":0.5,"d":"1"},{"$f":"D8+60","v":"2019-01-25"},"Paydaş Satın Alması"]
[null,8,-1,{"$f":"D9+70","v":"2019-04-05"},"Kaynak Seçimi"]
[null,9,{"v":0.5,"d":"1"},{"$f":"D10+80","v":"2019-06-24"},"Ekip Oluşturma\netkinlik 1 "]
[null,10,-2,{"$f":"D11+90","v":"2019-09-22"},"Ekip Başlangıcı\netkinlik 1 \netkinlik 2\netkinlik 3\netkinlik 4"]
[null,11,3,{"$f":"D12+100","v":"2019-12-31"},"Veri Toplamaya Başlama"]
[null,12,-1,{"$f":"D13+90","v":"2020-03-30"},"Veri Çözümleme"]
[null,13,1,{"$f":"D14+80","v":"2020-06-18"},"Tasarım"]
[null,14,1,{"$f":"D15+70","v":"2020-08-27"},"Kavram Kanıtı"]
[null,15,-3,{"$f":"D16+60","v":"2020-10-26"},"Test ve Çözümleme"]
[null,16,-2,{"$f":"D17+50","v":"2020-12-15"},"Yeniden Tasarlama"]
[null,17,2,{"$f":"D18+40","v":"2021-01-24"},"Yeniden Geliştirme"]
[null,18,-1,{"$f":"D19+30","v":"2021-02-23"},"Test ve Çözümleme"]
[null,19,1,{"$f":"D20+20","v":"2021-03-15"},"Yeniden Tasarlama"]
[null,20,-3,{"$f":"D21+10","v":"2021-03-25"},"Yeniden Geliştirme"]
[null,21,2,{"$f":"D22+20","v":"2021-04-14"},"Son Test"]
[null,22,1,{"$f":"D23+30","v":"2021-05-14"},"Beta Testi"]
[null,23,-3,{"$f":"D24+40","v":"2021-06-23"},"Gözden Geçir"]
[null,24,-2,{"$f":"D25+50","v":"2021-08-12"},"Pazarlamaya Sunma"]
["Yol Haritası Kilometre Taşları tablosuna daha fazla satır eklemek için bu satırın üstüne yeni bir satır ekleyin.\nBu çalışma sayfasında başka yönerge yoktur.",null,"Daha fazla kilometre taşı eklemek için bu çizginin üstüne yeni satırlar ekleyin."]

{"sheet":"Yol haritası","index":1,"n_rows":3,"n_cols":4,"rows_kept":3}
["Kilometre Taşları çalışma sayfasındaki kilometre taşlarını gösteren grafik bu çalışma sayfasındadır. \nYıllar B2, C2 ve D2 hücrelerinde gösterilir ve Başlık 3 stili uygulanmıştır.\nTek seferde 10 kilometre taşının grafiği oluşturulur. \nYol haritasında gezinmek için B4 ile D4 arasındaki hücrelerde yer alan kaydırma çubuğunu kullanın.\nZaman çizelgesi yılları B3 ile D3 arasındaki hücrelerdedir.\nBu çalışma sayfasında başka yönerge yoktur."]
[]
[null,{"$f":"'Grafik verileri'!B20","v":2018},{"$f":"'Grafik verileri'!B21","v":""},{"$f":"'Grafik verileri'!B22","v":2019}]

{"sheet":"Hakkında","index":2,"n_rows":5,"n_cols":1,"rows_kept":5}
["Bu çalışma kitabı hakkında"]
["Ekran okuyucuları için kılavuz:"]
["Bu çalışma kitabında 4 çalışma sayfası vardır. \n\nKilometre taşları\nYol haritası\nHakkında\nGrafik Verileri (gizli)\n\nHer bir çalışma sayfası için yönergeler her çalışma sayfasının A sütunundaki A1 hücresinden başlar. Bunlar gizli metinle yazılıdır. Her adım, bu satırdaki bilgileri açıklar. Sonraki adımlar, başka bir yere açık bir şekilde yönlendirilmedikçe A2, A3 ve devamındaki hücrelerde devam eder. Örneğin, yönerge metni sonraki adım için “A6 hücresinden devam edin” diyebilir. \n\nGizli metin yazdırılmaz.\n\nBu yönergeleri bir çalışma sayfasından kaldırmak için A sütununu silmeniz yeterlidir.\n"]
["Bu yol haritası, kilometre taşlarının ve etkinliklerin grafiğini oluşturmak için konumları kullanır. Konumlar kullanılarak bir kilometre taşına veya etkinliğe ağırlık eklenebilir. Değerleri ağırlık tercihinize göre ayarlamanız yeterli. Örneğin, kilometre taşı/etkinlik 3’ün kilometre taşı/etkinlik 2’den daha fazla ağırlığı olabilir. Grafikte bunu göstermek için basitçe kilometre taşı/etkinlik 3 için Konum değerini kilometre taşı/etkinlik 2’den yüksek olarak girin.  \n"]
["Bu, çalışma sayfasındaki son yönergedir."]

{"sheet":"Grafik verileri","index":3,"n_rows":26,"n_cols":4,"rows_kept":26,"hidden":true}
["Dinamik grafiklendirmenin oluşturulmasına yönelik veriler bu çalışma sayfasındadır. Bu çalışma sayfasını silmeyin!\nBu çalışma sayfasının silinmesi çalışma kitabının dinamik özelliğini bozabilir.","Bu çalışma sayfasını silmeyin!"]
["Tablo başlığı B2 hücresindedir.","Dinamik Grafik içeriği"]
["Tablo başlıkları B3 ile D3 arasındaki hücrelerdedir. \nBu tablo, Kilometre Taşları çalışma sayfasına girilen içerikler temel alınarak otomatik olarak güncelleştirilir.\nUyarı: Bu tablodaki içeriğin değiştirilmesi veya silinmesi, Yol Haritası çalışma sayfasındaki Yol Haritası grafiğinin dinamik güncelleştirme özelliğini bozabilir.\nSonraki yönerge için A15 hücresine gidin.","Tarih","Etkinlikler","Konum"]
[null,{"$f":"IFERROR(IF(LEN('Kilometre taşları'!D3)=0,\"\",INDEX(YolHaritasıKilometreTaşları[],'Kilometre taşları'!$B3+$B$17,3)),\"\")","v":"2018-06-29"},{"$f":"IFERROR(IF(LEN('Kilometre taşları'!E3)=0,\"\",INDEX(YolHaritasıKilometreTaşları[],'Kilometre taşları'!$B3+$B$17,4)),\"\")","v":"Başlangıç"},{"$f":"IFERROR(INDEX(YolHaritasıKilometreTaşları[],'Kilometre taşları'!$B3+$B$17,2),\"\")","v":1}]
[null,{"$f":"IFERROR(IF(LEN('Kilometre taşları'!D4)=0,\"\",INDEX(YolHaritasıKilometreTaşları[],'Kilometre taşları'!$B4+$B$17,3)),\"\")","v":"2018-07-09"},{"$f":"IFERROR(IF(LEN('Kilometre taşları'!E4)=0,\"\",INDEX(YolHaritasıKilometreTaşları[],'Kilometre taşları'!$B4+$B$17,4)),\"\")","v":"Sorun Çözümleme\netkinlik 1"},{"$f":"IFERROR(INDEX(YolHaritasıKilometreTaşları[],'Kilometre taşları'!$B4+$B$17,2),\"\")","v":-2}]
[null,{"$f":"IFERROR(IF(LEN('Kilometre taşları'!D5)=0,\"\",INDEX(YolHaritasıKilometreTaşları[],'Kilometre taşları'!$B5+$B$17,3)),\"\")","v":"2018-07-29"},{"$f":"IFERROR(IF(LEN('Kilometre taşları'!E5)=0,\"\",INDEX(YolHaritasıKilometreTaşları[],'Kilometre taşları'!$B5+$B$17,4)),\"\")","v":"İş Örnek Durumu Geliştirme\netkinlik 1\netkinlik 2"},{"$f":"IFERROR(INDEX(YolHaritasıKilometreTaşları[],'Kilometre taşları'!$B5+$B$17,2),\"\")","v":1}]
[null,{"$f":"IFERROR(IF(LEN('Kilometre taşları'!D6)=0,\"\",INDEX(YolHaritasıKilometreTaşları[],'Kilometre taşları'!$B6+$B$17,3)),\"\")","v":"2018-08-28"},{"$f":"IFERROR(IF(LEN('Kilometre taşları'!E6)=0,\"\",INDEX(YolHaritasıKilometreTaşları[],'Kilometre taşları'!$B6+$B$17,4)),\"\")","v":"Sunuyu Gözden Geçirme"},{"$f":"IFERROR(INDEX(YolHaritasıKilometreTaşları[],'Kilometre taşları'!$B6+$B$17,2),\"\")","v":-1}]
[null,{"$f":"IFERROR(IF(LEN('Kilometre taşları'!D7)=0,\"\",INDEX(YolHaritasıKilometreTaşları[],'Kilometre taşları'!$B7+$B$17,3)),\"\")","v":"2018-10-07"},{"$f":"IFERROR(IF(LEN('Kilometre taşları'!E7)=0,\"\",INDEX(YolHaritasıKilometreTaşları[],'Kilometre taşları'!$B7+$B$17,4)),\"\")","v":"Yürütme Başlangıcı\netkinlik 1\netkinlik 2"},{"$f":"IFERROR(INDEX(YolHaritasıKilometreTaşları[],'Kilometre taşları'!$B7+$B$17,2),\"\")","v":-0.5}]
[null,{"$f":"IFERROR(IF(LEN('Kilometre taşları'!D8)=0,\"\",INDEX(YolHaritasıKilometreTaşları[],'Kilometre taşları'!$B8+$B$17,3)),\"\")","v":"2018-11-26"},{"$f":"IFERROR(IF(LEN('Kilometre taşları'!E8)=0,\"\",INDEX(YolHaritasıKilometreTaşları[],'Kilometre taşları'!$B8+$B$17,4)),\"\")","v":"Yürütme Uyumu\netkinlik 1\netkinlik 2\netkinlik 3"},{"$f":"IFERROR(INDEX(YolHaritasıKilometreTaşları[],'Kilometre taşları'!$B8+$B$17,2),\"\")","v":2}]
[null,{"$f":"IFERROR(IF(LEN('Kilometre taşları'!D9)=0,\"\",INDEX(YolHaritasıKilometreTaşları[],'Kilometre taşları'!$B9+$B$17,3)),\"\")","v":"2019-01-25"},{"$f":"IFERROR(IF(LEN('Kilometre taşları'!E9)=0,\"\",INDEX(YolHaritasıKilometreTaşları[],'Kilometre taşları'!$B9+$B$17,4)),\"\")","v":"Paydaş Satın Alması"},{"$f":"IFERROR(INDEX(YolHaritasıKilometreTaşları[],'Kilometre taşları'!$B9+$B$17,2),\"\")","v":0.5}]
[null,{"$f":"IFERROR(IF(LEN('Kilometre taşları'!D10)=0,\"\",INDEX(YolHaritasıKilometreTaşları[],'Kilometre taşları'!$B10+$B$17,3)),\"\")","v":"2019-04-05"},{"$f":"IFERROR(IF(LEN('Kilometre taşları'!E10)=0,\"\",INDEX(YolHaritasıKilometreTaşları[],'Kilometre taşları'!$B10+$B$17,4)),\"\")","v":"Kaynak Seçimi"},{"$f":"IFERROR(INDEX(YolHaritasıKilometreTaşları[],'Kilometre taşları'!$B10+$B$17,2),\"\")","v":-1}]
[null,{"$f":"IFERROR(IF(LEN('Kilometre taşları'!D11)=0,\"\",INDEX(YolHaritasıKilometreTaşları[],'Kilometre taşları'!$B11+$B$17,3)),\"\")","v":"2019-06-24"},{"$f":"IFERROR(IF(LEN('Kilometre taşları'!E11)=0,\"\",INDEX(YolHaritasıKilometreTaşları[],'Kilometre taşları'!$B11+$B$17,4)),\"\")","v":"Ekip Oluşturma\netkinlik 1 "},{"$f":"IFERROR(INDEX(YolHaritasıKilometreTaşları[],'Kilometre taşları'!$B11+$B$17,2),\"\")","v":0.5}]
[null,{"$f":"IFERROR(IF(LEN('Kilometre taşları'!D12)=0,\"\",INDEX(YolHaritasıKilometreTaşları[],'Kilometre taşları'!$B12+$B$17,3)),\"\")","v":"2019-09-22"},{"$f":"IFERROR(IF(LEN('Kilometre taşları'!E12)=0,\"\",INDEX(YolHaritasıKilometreTaşları[],'Kilometre taşları'!$B12+$B$17,4)),\"\")","v":"Ekip Başlangıcı\netkinlik 1 \netkinlik 2\netkinlik 3\netkinlik 4"},{"$f":"IFERROR(INDEX(YolHaritasıKilometreTaşları[],'Kilometre taşları'!$B12+$B$17,2),\"\")","v":-2}]
[]
["Yol haritasında kaydırma özelliği, bir artış değerinin yardımıyla gerçekleştirilir. Bu özelliğin başlığı B15 hücresindedir.\nBaşlık ve tek bir değerin yer aldığı tablo B16 ve B17 hücrelerindedir.\nSonraki yönerge için A19 hücresine gidin.","Kaydırma özelliği"]
[null,"Satır Artışı"]
[null,0]
[]
["Yol haritası grafiği, zaman çizelgesine yönelik yılları çizer. Bunun yapılması için yılların Kilometre Taşı Listesi’nden alınması gerekir. \nBu bölümün başlığı B19 hücresindeki “Yıl”dır. \nYıl değerleri C20 ve C22 arasındaki hücrelerde otomatik olarak oluşturulur.\nUyarı: Bu yılların silinmesi veya değiştirilmesi Yol Haritası grafiğinin gösterme doğruluğunu değiştirebilir.\nSonraki yönerge için A24 hücresine gidin.","Yıl"]
[null,{"$f":"IFERROR(YEAR(B4),\"\")","v":2018},"<-- yol haritasının başlangıç konumu yılı"]
[null,{"$f":"IFERROR(IF(YEAR($B$9)=$B$20,\"\",YEAR($B$9)),\"\")","v":""},"<-- yol haritasının orta konumdaki yılı, yol haritasının başlangıç konumu yılıyla aynıysa bunun boş olabileceğini unutmayın"]
[null,{"$f":"IFERROR(IF(YEAR($B$13)=$B$20,\"\",YEAR($B$13)),\"\")","v":2019},"<-- yol haritasının son konumundaki yılı, yol haritasının başlangıç konumu yılıyla aynıysa bunun boş olabileceğini unutmayın"]
[]
["Yol Haritası grafiğindeki halka işaretleyiciler, bu çalışma sayfasındaki dinamik grafik içeriğindeki tarihleri içerir. Tarihler C24 hücresindeki İlk tarih, C25 hücresindeki Orta tarih ve C26 hücresindeki Son tarih.\nBu çalışma sayfasında başka yönerge yoktur.","İlk tarih",{"$f":"B4","v":"2018-06-29"}]
[null,"Orta tarih",{"$f":"B9","v":"2018-11-26"}]
[null,"Son tarih",{"$f":"B13","v":"2019-09-22"}]